fUSD/lending_fUSD_20250620
["ID","MTS","AMOUNT","RATE_DAILY","PERIOD"]
[366706998,1750415583949,-817.65,0.00027671,4]
[366706999,1750415583959,-1212.05,0.00027671,4]
[366707000,1750415583969,-490.0,0.00027671,4]
[366707001,1750415583980,-490.0,0.00027671,4]
[366707002,1750415583990,-1510.44,0.00027671,4]
[366707003,1750415584000,-490.0,0.00027671,4]
[366707004,1750415584010,-563.12,0.00027671,4]
[366707005,1750415584020,-17404.6,0.00027671,4]
[366707006,1750415584030,-490.0,0.00027671,4]
[366707007,1750415584039,-516.42,0.00027671,4]
[366707008,1750415584050,-1966.77,0.00027671,4]
[366707009,1750415584059,-499.64,0.00027671,4]
[366707010,1750415584069,-682.61,0.00027671,4]
[366707011,1750415584079,-496.54,0.00027671,4]
[366707012,1750415584089,-1292.76,0.00027671,4]
[366707013,1750415584100,-490.0,0.00027671,4]
[366707014,1750415584110,-532.96,0.00027671,4]
[366707015,1750415584120,-490.0,0.00027671,4]
[366707016,1750415584130,-490.0,0.00027671,4]
[366707017,1750415584140,-490.0,0.00027671,4]
[366707018,1750415584150,-3089.65,0.00027671,4]
[366707019,1750415584161,-490.0,0.00027671,4]
[366707020,1750415584170,-490.0,0.00027671,4]
[366707021,1750415584181,-1110.49,0.00027671,4]
[366707022,1750415584192,-875.85,0.00027671,4]
[366707023,1750415584202,-490.0,0.00027671,4]
[366707024,1750415584212,-808.72,0.00027671,4]
[366707025,1750415584223,-490.0,0.00027671,4]
[366707026,1750415584233,-490.0,0.00027671,4]
[366707027,1750415584243,-548.1,0.00027671,4]
[366707028,1750415584253,-490.0,0.00027671,4]
[366707029,1750415584263,-1116.64,0.00027671,4]
[366707030,1750415584273,-490.0,0.00027671,4]
[366707031,1750415584282,-741.55,0.00027671,4]
[366707032,1750415584292,-490.0,0.00027671,4]
[366707033,1750415584303,-490.0,0.00027671,4]
[366707034,1750415584312,-900.32,0.00027671,4]
[366707035,1750415584323,-3388.66,0.00027671,4]
[366707036,1750415584333,-490.0,0.00027671,4]
[366707037,1750415584342,-490.0,0.00027671,4]
[366707038,1750415584352,-1386.85,0.00027671,4]
[366707039,1750415584362,-2512.9,0.00027671,4]
[366707040,1750415584372,-490.0,0.00027671,4]
[366707041,1750415584381,-490.0,0.00027671,4]
[366707042,1750415584391,-613.06,0.00027671,4]
[366707043,1750415584401,-7527.62,0.00027671,4]
[366707044,1750415584411,-7882.79,0.00027671,4]
[366707045,1750415584421,-1533.1,0.00027671,4]
[366707046,1750415584431,-741.74,0.00027671,4]
[366707047,1750415584441,-557.61,0.00027671,4]
[366707048,1750415584451,-2444.05,0.00027671,4]
[366707049,1750415584461,-1074.56,0.00027671,4]
[366707050,1750415584470,-490.0,0.00027671,4]
[366707051,1750415584480,-716.85,0.00027671,4]
[366707052,1750415584490,-3776.02,0.00027671,4]
[366707053,1750415584499,-600.0,0.00027671,120]
[366707054,1750415584509,-490.0,0.00027671,4]
[366707055,1750415584518,-759.29,0.00027671,4]
[366707056,1750415584529,-508.46,0.00027671,4]
[366707057,1750415584539,-490.0,0.00027671,4]
[366707058,1750415584549,-5317.42,0.00027671,4]
[366707059,1750415584558,-490.0,0.00027671,4]
[366707060,1750415584569,-490.0,0.00027671,4]
[366707061,1750415584578,-1702.18,0.00027671,4]
[366707062,1750415584588,-1502.12,0.00027671,4]
[366707063,1750415584598,-490.0,0.00027671,4]
[366707064,1750415584608,-9880.35,0.00027671,4]
[366707065,1750415584618,-670.44,0.00027671,4]
[366707066,1750415584628,-2012.16,0.00027671,4]
[366707067,1750415584639,-1936.5,0.00027671,4]
[366707068,1750415584650,-6404.69,0.00027671,4]
[366707069,1750415584660,-490.0,0.00027671,4]
[366707070,1750415584670,-490.0,0.00027671,4]
[366707071,1750415584680,-490.0,0.00027671,4]
[366707072,1750415584690,-2380.6,0.00027671,4]
[366707073,1750415584699,-1141.27,0.00027671,4]
[366707074,1750415584710,-510.99,0.00027671,4]
[366707075,1750415584721,-691.59,0.00027671,4]
[366707076,1750415584731,-490.0,0.00027671,4]
[366707077,1750415584741,-490.0,0.00027671,4]
[366707078,1750415584752,-490.0,0.00027671,4]
[366707079,1750415584761,-2450.17,0.00027671,4]
[366707080,1750415584771,-1844.2,0.00027671,4]
[366707081,1750415584780,-490.0,0.00027671,4]
[366707082,1750415584791,-622.58,0.00027671,4]
[366707083,1750415584801,-490.0,0.00027671,4]
[366707084,1750415584811,-490.0,0.00027671,4]
[366707085,1750415584821,-1419.42,0.00027671,4]
[366707086,1750415584831,-17540.73,0.00027671,4]
[366707087,1750415584842,-1227.01,0.00027671,4]
[366707088,1750415584851,-490.0,0.00027671,4]
[366707089,1750415584861,-490.0,0.00027671,4]
[366707090,1750415584871,-490.0,0.00027671,4]
[366707091,1750415584882,-490.0,0.00027671,4]
[366707092,1750415584891,-490.0,0.00027671,4]
[366707093,1750415584901,-5948.54,0.00027671,4]
[366707094,1750415584911,-957.68,0.00027671,4]
[366707095,1750415584922,-490.0,0.00027671,4]
[366707096,1750415584933,-442.04009131,0.00027671,4]
[366707097,1750415584943,-5372.22,0.00027671,4]
[366707098,1750415584953,-1499.27,0.00027671,4]
[366707099,1750415584963,-490.0,0.00027671,4]
[366707100,1750415584973,-1594.4,0.00027671,4]
[366707101,1750415584983,-490.0,0.00027671,4]
[366707102,1750415584993,-1525.88,0.00027671,4]
[366707103,1750415585005,-18649.49,0.00027671,4]
[366707104,1750415585015,-490.0,0.00027671,4]
[366707105,1750415585024,-662.4,0.00027671,4]
[366707106,1750415585034,-11431.71,0.00027671,4]
[366707107,1750415585044,-574.02,0.00027671,4]
[366707108,1750415585056,-490.0,0.00027671,4]
[366707109,1750415585065,-490.0,0.00027671,4]
[366707110,1750415585230,-2766.75,0.00027671,4]
[366707111,1750415585241,-1747.3,0.00027671,4]
[366707112,1750415585250,-490.0,0.00027671,4]
[366707113,1750415585259,-1639.8,0.00027671,4]
[366707114,1750415585269,-490.0,0.00027671,4]
[366707115,1750415585279,-521.31,0.00027671,4]
[366707116,1750415585290,-641.47,0.00027671,4]
[366707117,1750415585299,-1452.7,0.00027671,4]
[366707118,1750415585309,-490.0,0.00027671,4]
[366707119,1750415585320,-490.0,0.00027671,4]
[366707120,1750415585331,-766.28,0.00027671,4]
[366707121,1750415585341,-1528.81,0.00027671,4]
[366707122,1750415585350,-2442.89,0.00027671,4]
[366707124,1750415585360,-490.0,0.00027671,4]
[366707125,1750415585369,-490.0,0.00027671,4]
[366707126,1750415585379,-974.85,0.00027671,4]
[366707127,1750415585388,-525.8,0.00027671,4]
[366707128,1750415585398,-655.26,0.00027671,4]
[366707129,1750415585408,-490.0,0.00027671,4]
[366707130,1750415585417,-490.0,0.00027671,4]
[366707131,1750415585427,-6155.02,0.00027671,4]
[366707132,1750415585437,-490.0,0.00027671,4]
[366707133,1750415585448,-1546.64,0.00027671,4]
[366707134,1750415585458,-490.0,0.00027671,4]
[366707135,1750415585468,-952.09,0.00027671,4]
[366707136,1750415585478,-2556.54,0.00027671,4]
[366707137,1750415585487,-490.0,0.00027671,4]
[366707138,1750415585497,-1078.67,0.00027671,4]
[366707139,1750415585507,-1698.38,0.00027671,4]
[366707140,1750415585516,-7770.54,0.00027671,4]
[366707141,1750415585526,-490.0,0.00027671,4]
[366707142,1750415585537,-490.0,0.00027671,4]
[366707143,1750415585546,-193.02711199,0.00027671,4]
[366707144,1750415585556,-713.18,0.00027671,4]
[366707145,1750415585566,-490.0,0.00027671,4]
[366707146,1750415585578,-490.0,0.00027671,4]
[366707147,1750415585589,-565.57,0.00027671,4]
[366707148,1750415585599,-1078.51,0.00027671,4]
[366707149,1750415585608,-490.0,0.00027671,4]
[366707150,1750415585617,-490.0,0.00027671,4]
[366707151,1750415585628,-490.0,0.00027671,4]
[366707152,1750415585638,-511.43,0.00027671,4]
[366707153,1750415585648,-490.0,0.00027681,4]
[366707154,1750415585658,-490.0,0.00027681,4]
[366707155,1750415585668,-490.0,0.00027681,4]
[366707156,1750415585678,-490.0,0.00027681,4]
[366707157,1750415585687,-463.50488836,0.00027681,4]
[366707158,1750415585696,-490.0,0.00027681,4]
[366707159,1750415585706,-490.0,0.00027681,4]
[366707160,1750415585717,-490.0,0.00027681,4]
[366707161,1750415585728,-490.0,0.00027681,4]
[366707162,1750415585737,-490.0,0.00027681,4]
[366707163,1750415585747,-490.0,0.00027681,4]
[366707164,1750415585757,-179.12075484,0.00027681,4]
[366707165,1750415585766,-490.0,0.00027681,4]
[366707166,1750415585776,-709.67,0.00027681,4]
[366707167,1750415585786,-490.0,0.00027681,4]
[366707168,1750415585796,-490.0,0.00027681,4]
[366707169,1750415585806,-716.73,0.00027681,4]
[366707170,1750415585815,-490.0,0.00027681,4]
[366707171,1750415585825,-879.88,0.00027681,4]
[366707172,1750415585835,-490.0,0.00027681,4]
[366707173,1750415585844,-490.0,0.00027681,4]
[366707174,1750415585853,-490.0,0.00027681,4]
[366707175,1750415585863,-490.0,0.00027681,4]
[366707176,1750415585873,-490.0,0.00027681,4]
[366707177,1750415585883,-490.0,0.00027681,4]
[366707178,1750415585892,-490.0,0.00027681,4]
[366707179,1750415585902,-490.0,0.00027681,4]
[366707180,1750415585911,-490.0,0.00027681,4]
[366707181,1750415585921,-490.0,0.00027681,4]
[366707182,1750415585930,-490.0,0.00027681,4]
[366707183,1750415585940,-490.0,0.00027681,4]
[366707184,1750415585950,-1218.9,0.00027681,4]
[366707185,1750415585960,-901.28,0.00027681,4]
[366707186,1750415585970,-507.19,0.00027681,4]
[366707187,1750415585979,-490.0,0.00027681,4]
[366707188,1750415585989,-490.0,0.00027681,4]
[366707189,1750415585998,-584.6,0.00027681,4]
[366707190,1750415586007,-490.0,0.00027681,4]
[366707191,1750415586016,-490.0,0.00027681,4]
[366707192,1750415586025,-490.0,0.00027681,4]
[366707193,1750415586035,-490.0,0.00027681,4]
[366707194,1750415586045,-490.0,0.00027681,4]
[366707195,1750415586055,-490.0,0.00027681,4]
[366707196,1750415586064,-490.0,0.00027681,4]
[366707197,1750415586075,-562.06898289,0.00027681,4]
[366707198,1750415586084,-490.0,0.00027681,4]
[366707199,1750415586094,-490.0,0.00027681,4]
[366707200,1750415586104,-624.83,0.00027681,4]
[366707201,1750415586115,-490.0,0.00027681,4]
[366707202,1750415586125,-490.0,0.00027681,4]
[366707203,1750415586134,-947.23,0.00027681,4]
[366707204,1750415586144,-497.34,0.00027681,4]
[366707205,1750415586153,-1160.0,0.00027681,4]
[366707206,1750415586162,-682.25,0.00027681,4]
[366707207,1750415586171,-676.69,0.00027681,4]
[366707208,1750415586181,-798.57,0.00027681,4]
[366707209,1750415586195,-490.0,0.00027681,4]
[366707210,1750415586204,-490.0,0.00027681,4]
[366707211,1750415586213,-490.0,0.00027681,4]
[366707212,1750415586223,-490.0,0.00027681,4]
[366707213,1750415586233,-490.0,0.00027681,4]
[366707214,1750415586243,-490.0,0.00027681,4]
[366707215,1750415586253,-490.0,0.00027681,4]
[366707216,1750415586263,-994.26,0.00027681,4]
[366707217,1750415586272,-490.0,0.00027681,4]
[366707218,1750415586284,-490.0,0.00027681,4]
[366707219,1750415586294,-504.86,0.00027681,4]
[366707220,1750415586304,-1262.16,0.00027681,4]
[366707221,1750415586313,-490.0,0.00027681,4]
[366707222,1750415586323,-526.89,0.00027681,4]
[366707223,1750415586333,-490.0,0.00027681,4]
[366707224,1750415586343,-490.0,0.00027681,4]
[366707225,1750415586352,-562.08,0.00027681,4]
[366707226,1750415586361,-545.75,0.00027681,4]
[366707227,1750415586371,-1061.69,0.00027681,4]
[366707228,1750415586381,-490.0,0.00027681,4]
[366707229,1750415586391,-809.96,0.00027681,4]
[366707230,1750415586400,-631.0,0.00027681,4]
[366707231,1750415586410,-1378.13,0.00027681,4]
[366707232,1750415586419,-490.0,0.00027681,4]
[366707233,1750415586429,-490.0,0.00027681,4]
[366707234,1750415586438,-490.0,0.00027681,4]
[366707235,1750415586448,-559.26,0.00027681,4]
[366707236,1750415586457,-490.0,0.00027681,4]
[366707237,1750415586467,-707.03,0.00027681,4]
[366707238,1750415586476,-490.0,0.00027681,4]
[366707239,1750415586485,-2021.51,0.00027681,4]
[366707240,1750415586494,-547.36,0.00027681,4]
[366707241,1750415586504,-1831.85,0.00027681,4]
[366707242,1750415586514,-606.95,0.00027681,4]
[366707243,1750415586524,-1476.65,0.00027681,4]
[366707244,1750415586535,-490.0,0.00027681,4]
[366707245,1750415586545,-490.0,0.00027681,4]
[366707246,1750415586554,-528.57282385,0.00027681,4]
[366707247,1750415586563,-490.0,0.00027681,4]
[366707248,1750415586573,-490.0,0.00027681,4]
[366707249,1750415586582,-1005.12,0.00027681,4]
[366707250,1750415586591,-1516.56,0.00027681,4]
[366707251,1750415586600,-600.95,0.00027681,4]
[366707252,1750415586610,-490.0,0.00027681,4]
[366707253,1750415586620,-490.0,0.00027681,4]
[366707254,1750415586630,-490.0,0.00027681,4]
[366707255,1750415586639,-490.0,0.00027681,4]
[366707256,1750415586649,-302.3,0.00027681,4]
[366707257,1750415586658,-1853.92,0.00027681,4]
[366707258,1750415586669,-490.0,0.00027681,4]
[366707259,1750415586679,-490.0,0.00027681,4]
[366707260,1750415586688,-1207.48,0.00027681,4]
[366707261,1750415586699,-970.42,0.00027681,4]
[366707262,1750415586708,-490.0,0.00027681,4]
[366707263,1750415586717,-1085.47,0.00027681,4]
[366707264,1750415586727,-555.86,0.00027681,4]
[366707265,1750415586736,-1321.89,0.00027681,4]
[366707266,1750415586745,-907.27,0.00027681,4]
[366707267,1750415586755,-490.0,0.00027681,4]
[366707268,1750415586764,-166.82220188,0.00027681,4]
[366707269,1750415586773,-490.0,0.00027681,4]
[366707270,1750415586782,-490.0,0.00027681,4]
[366707271,1750415586792,-490.0,0.00027681,4]
[366707272,1750415586801,-490.0,0.00027681,4]
[366707273,1750415586810,-1835.37,0.00027681,4]
[366707274,1750415586820,-490.0,0.00027681,4]
[366707275,1750415586830,-490.0,0.00027681,4]
[366707276,1750415586839,-556.59,0.00027681,4]
[366707277,1750415586849,-1052.99,0.00027681,4]
[366707278,1750415586858,-490.0,0.00027681,4]
[366707279,1750415586868,-567.01,0.00027681,4]
[366707280,1750415586878,-492.0,0.00027681,4]
[366707281,1750415586887,-819.36,0.00027681,4]
[366707282,1750415586897,-2175.07,0.00027681,4]
[366707283,1750415586907,-490.0,0.00027681,4]
[366707284,1750415586917,-789.56,0.00027681,4]
[366707285,1750415586927,-1474.82,0.00027681,4]
[366707286,1750415586936,-490.0,0.00027681,4]
[366707287,1750415586946,-1752.57,0.00027681,4]
[366707288,1750415586956,-490.0,0.00027681,4]
[366707289,1750415586966,-490.0,0.00027681,4]
[366707290,1750415586975,-490.0,0.00027681,4]
[366707291,1750415586985,-2581.66,0.00027681,4]
[366707292,1750415586995,-490.0,0.00027681,4]
[366707293,1750415587005,-1705.52,0.00027681,4]
[366707294,1750415587015,-490.0,0.00027681,4]
[366707295,1750415587027,-1306.7,0.00027681,4]
[366707296,1750415587037,-490.0,0.00027681,4]
[366707297,1750415587047,-525.6,0.00027681,4]
[366707298,1750415587058,-490.0,0.00027681,4]
[366707299,1750415587068,-737.94,0.00027681,4]
[366707300,1750415587078,-490.0,0.00027681,4]
[366707301,1750415587088,-490.0,0.00027681,4]
[366707302,1750415587098,-490.0,0.00027681,4]
[366707303,1750415587109,-616.11,0.00027681,4]
[366707304,1750415587118,-749.2,0.00027681,4]
[366707305,1750415587128,-490.0,0.00027681,4]
[366707306,1750415587138,-1450.49,0.00027681,4]
[366707307,1750415587147,-733.41,0.00027681,4]
[366707308,1750415587157,-490.0,0.00027681,4]
[366707309,1750415587167,-2517.34,0.00027681,4]
[366707310,1750415587176,-490.0,0.00027681,4]
[366707311,1750415587185,-490.0,0.00027681,4]
[366707312,1750415587195,-647.98,0.00027681,4]
[366707313,1750415587204,-1420.61,0.00027681,4]
[366707314,1750415587215,-666.21,0.00027681,4]
[366707315,1750415587224,-490.0,0.00027681,4]
[366707316,1750415587235,-798.3,0.00027681,4]
[366707317,1750415587246,-490.0,0.00027681,4]
[366707318,1750415587256,-490.0,0.00027681,4]
[366707319,1750415587266,-490.0,0.00027681,4]
[366707320,1750415587276,-629.3,0.00027681,4]
[366707321,1750415587286,-744.22,0.00027681,4]
[366707322,1750415587295,-490.0,0.00027681,4]
[366707323,1750415587305,-824.71,0.00027681,4]
[366707324,1750415587315,-1579.86,0.00027681,4]
[366707325,1750415587325,-490.0,0.00027681,4]
[366707326,1750415587335,-490.0,0.00027681,4]
[366707327,1750415587345,-1499.44,0.00027681,4]
[366707328,1750415587354,-509.05,0.00027681,4]
[366707329,1750415587363,-2238.49,0.00027681,4]
[366707330,1750415587373,-490.0,0.00027681,4]
[366707331,1750415587383,-597.0,0.00027681,4]
[366707332,1750415587393,-490.0,0.00027681,4]
[366707333,1750415587403,-933.51,0.00027681,4]
[366707334,1750415587412,-490.0,0.00027681,4]
[366707335,1750415587421,-822.58,0.00027681,4]
[366707336,1750415587430,-838.77,0.00027681,4]
[366707337,1750415587439,-504.68,0.00027681,4]
[366707338,1750415587449,-507.81,0.00027681,4]
[366707339,1750415587459,-490.0,0.00027681,4]
[366707340,1750415587468,-490.0,0.00027681,4]
[366707341,1750415587478,-490.0,0.00027681,4]
[366707342,1750415587487,-572.5,0.00027681,4]
[366707343,1750415587497,-490.0,0.00027681,4]
[366707344,1750415587506,-490.0,0.00027681,4]
[366707345,1750415587516,-1129.55,0.00027681,4]
[366707346,1750415587526,-858.91,0.00027681,4]
[366707347,1750415587536,-490.0,0.00027681,4]
[366707348,1750415587545,-800.69,0.00027681,4]
[366707349,1750415587555,-1036.77,0.00027681,4]
[366707350,1750415587564,-490.0,0.00027681,4]
[366707351,1750415587574,-1310.63,0.00027681,4]
[366707352,1750415587583,-490.0,0.00027681,4]
[366707353,1750415587593,-867.83,0.00027681,4]
[366707354,1750415587602,-545.19,0.00027681,4]
[366707355,1750415587611,-1236.78,0.00027681,4]
[366707356,1750415587621,-490.0,0.00027681,4]
[366707357,1750415587630,-490.0,0.00027681,4]
[366707358,1750415587640,-490.0,0.00027681,4]
[366707359,1750415587649,-509.27,0.00027681,4]
[366707360,1750415587659,-490.0,0.00027681,4]
[366707361,1750415587668,-490.0,0.00027681,4]
[366707362,1750415587677,-1804.01,0.00027681,4]
[366707363,1750415587687,-490.0,0.00027681,4]
[366707364,1750415587696,-490.0,0.00027681,4]
[366707365,1750415587705,-1718.47,0.00027681,4]
[366707366,1750415587714,-490.0,0.00027681,4]
[366707367,1750415587724,-528.49,0.00027681,4]
[366707368,1750415587733,-490.0,0.00027681,4]
[366707369,1750415587742,-808.69,0.00027681,4]
[366707370,1750415587751,-490.0,0.00027681,4]
[366707371,1750415587761,-490.0,0.00027681,4]
[366707372,1750415587770,-490.0,0.00027681,4]
[366707373,1750415587779,-726.13,0.00027681,4]
[366707374,1750415587789,-490.0,0.00027681,4]
[366707375,1750415587798,-490.0,0.00027682,4]
[366707376,1750415587807,-490.0,0.00027682,4]
[366707377,1750415587816,-924.0,0.00027682,4]
[366707378,1750415587825,-490.0,0.00027682,4]
[366707379,1750415587834,-490.0,0.00027682,4]
[366707380,1750415587843,-490.0,0.00027682,4]
[366707381,1750415587853,-490.0,0.00027682,4]
[366707382,1750415587862,-490.0,0.00027682,4]
[366707383,1750415587872,-555.64,0.00027682,4]
[366707384,1750415587881,-490.0,0.00027682,4]
[366707385,1750415587890,-560.67,0.00027682,4]
[366707386,1750415587899,-714.6,0.00027682,4]
[366707387,1750415587910,-490.0,0.00027682,4]
[366707388,1750415587919,-490.0,0.00027682,4]
[366707389,1750415587928,-584.97,0.00027682,4]
[366707390,1750415587937,-490.0,0.00027682,4]
[366707391,1750415587947,-528.72,0.00027682,4]
[366707392,1750415587956,-490.0,0.00027682,4]
[366707393,1750415587965,-490.0,0.00027682,4]
[366707394,1750415587976,-490.0,0.00027682,4]
[366707395,1750415587986,-490.0,0.00027682,4]
[366707396,1750415587997,-490.0,0.00027682,4]
[366707397,1750415588006,-490.0,0.00027682,4]
[366707398,1750415588015,-595.37,0.00027682,4]
[366707399,1750415588025,-168.0,0.00027699,2]
[366707400,1750415588034,-700.0,0.0002776,7]
[366707401,1750415588043,-500.0,0.0002776,7]
[366707402,1750415588053,-500.0,0.0002776,7]
[366707403,1750415588063,-1583.0,0.000278,2]
[366707404,1750415588072,-490.0,0.00027809,4]
[366707405,1750415588082,-775.47665243,0.00027831,17]
[366707406,1750415588092,-500.0,0.00027856,3]
[366707407,1750415588101,-1079.0,0.00027891,5]
[366707408,1750415588111,-120408.09,0.000279,7]
[366707409,1750415588121,-16602.7479315,0.000279,2]
[366707410,1750415588131,-16602.7479315,0.000279,2]
[366707411,1750415588141,-16602.7479315,0.000279,2]
[366707412,1750415588152,-16602.7479315,0.000279,2]
[366707413,1750415588161,-16602.7479315,0.000279,2]
[366707414,1750415588171,-16602.7479315,0.000279,2]
[366707415,1750415588181,-16602.7479315,0.000279,2]
[366707416,1750415588194,-16602.7479315,0.000279,2]
[366707417,1750415588203,-16602.7479315,0.000279,2]
[366707418,1750415588213,-16602.7479315,0.000279,2]
[366707419,1750415588223,-855.14,0.00027913,4]
[366707420,1750415588233,-490.0,0.00027913,4]
[366707421,1750415588242,-941.29,0.00027913,4]
[366707422,1750415588251,-1474.28,0.00027913,4]
[366707423,1750415588261,-3417.57907911,0.0002792,2]
[366707424,1750415588271,-710.39,0.00027923,4]
[366707425,1750415588281,-2657.88,0.00027923,4]
[366707426,1750415588291,-678.91,0.00027923,4]
[366707427,1750415588302,-951.97,0.00027923,4]
[366707428,1750415588312,-934.95,0.00027923,4]
[366707429,1750415588321,-982.82,0.00027923,4]
[366707430,1750415588331,-490.0,0.00027923,4]
[366707431,1750415588341,-490.0,0.00027923,4]
[366707432,1750415588351,-1196.7,0.00027923,4]
[366707433,1750415588360,-905.13,0.00027923,4]
[366707434,1750415588369,-733.67,0.00027923,4]
[366707435,1750415588379,-623.14,0.00027923,4]
[366707436,1750415588389,-858.58,0.00027923,4]
[366707437,1750415588398,-4996.22,0.00027923,4]
[366707438,1750415588408,-1411.02,0.00027923,4]
[366707439,1750415588417,-490.0,0.00027923,4]
[366707440,1750415588427,-566.53,0.00027923,4]
[366707441,1750415588436,-673.04,0.00027923,4]
[366707442,1750415588447,-1000.0,0.00027923,4]
[366707443,1750415588457,-560.81,0.00027923,4]
[366707444,1750415588467,-5470.75,0.00027923,4]
[366707445,1750415588477,-490.0,0.00027923,4]
[366707446,1750415588487,-2781.24,0.00027923,4]
[366707447,1750415588497,-608.76,0.00027923,4]
[366707448,1750415588506,-622.46,0.00027923,4]
[366707449,1750415588515,-2671.47,0.00027923,4]
[366707450,1750415588526,-490.0,0.00027923,4]
[366707451,1750415588536,-807.14,0.00027923,4]
[366707452,1750415588545,-490.0,0.00027933,4]
[366707453,1750415588555,-490.0,0.00027933,4]
[366707454,1750415588565,-490.0,0.00027933,4]
[366707455,1750415588575,-490.0,0.00027933,4]
[366707456,1750415588584,-525.64,0.00027933,4]
[366707457,1750415588594,-490.0,0.00027933,4]
[366707458,1750415588604,-490.0,0.00027933,4]
[366707459,1750415588614,-490.0,0.00027933,4]
[366707460,1750415588624,-490.0,0.00027933,4]
[366707461,1750415588634,-824.86,0.00027933,4]
[366707462,1750415588643,-490.0,0.00027933,4]
[366707463,1750415588653,-490.0,0.00027933,4]
[366707464,1750415588663,-490.0,0.00027933,4]
[366707465,1750415588674,-490.0,0.00027933,4]
[366707466,1750415588683,-1042.35,0.00027933,4]
[366707467,1750415588692,-2063.423116,0.00027933,4]
[366707468,1750415588702,-1129.83,0.00027933,4]
[366707469,1750415588712,-490.0,0.00027933,4]
[366707470,1750415588722,-490.0,0.00027933,4]
[366707471,1750415588731,-2980.629608,0.00027933,4]
[366707472,1750415588742,-1443.11,0.00027933,4]
[366707473,1750415588752,-6813.75,0.00027933,4]
[366707474,1750415588761,-490.0,0.00027933,4]
[366707475,1750415588771,-977.73,0.00027933,4]
[366707476,1750415588781,-1060.66,0.00027933,4]
[366707477,1750415588790,-1271.04,0.00027933,4]
[366707478,1750415588800,-490.0,0.00027933,4]
[366707479,1750415588810,-1687.17,0.00027933,4]
[366707480,1750415588819,-490.0,0.00027933,4]
[366707481,1750415588829,-1425.44,0.00027933,4]
[366707482,1750415588839,-490.0,0.00027933,4]
[366707483,1750415588849,-1260.23,0.00027933,4]
[366707484,1750415588859,-535.62,0.00027933,4]
[366707485,1750415588870,-600.47,0.00027933,4]
[366707486,1750415588880,-490.0,0.00027933,4]
[366707487,1750415588890,-7447.5,0.00027933,4]
[366707488,1750415588901,-490.0,0.00027933,4]
[366707489,1750415588910,-490.0,0.00027933,4]
[366707490,1750415588919,-998.98,0.00027933,4]
[366707491,1750415588930,-490.0,0.00027933,4]
[366707492,1750415588941,-1377.1,0.00027933,4]
[366707493,1750415588950,-4861.36,0.00027933,4]
[366707494,1750415588960,-1977.29,0.00027933,4]
[366707495,1750415588970,-490.0,0.00027933,4]
[366707496,1750415588980,-1276.4,0.00027933,4]
[366707497,1750415588990,-2235.26,0.00027933,4]
[366707498,1750415589000,-2488.9,0.00027933,4]